Cogmind - Beta 13 @@@ ROGUE MODE // 2024.05.02 @ 17:53:23 Player: MarKhan Result: Destroyed by G-47 Trooper with Particle Gun Performance ------------- Evolutions (2) 1000 Regions Visited (5) 1000 Robots Destroyed (53) 265 Value Destroyed (1729) 1729 Prototype IDs (5) 100 Alien Tech Used (0) 0 Bonus (785) 785 TOTAL SCORE: 4879 Bonus ------- High Alert Combat Kills 485 Aligned with FarCom 300 Cogmind --------- Core Integrity 0/550 Matter 295/300 Energy 54/100 System Corruption 5% Temperature Cool (18) Movement Rolling (145) Ox3 Location -8/Materials Parts ------- > --- POWER (2) -------- (None) > --- PROPULSION (4) --- Compact Wheel > --- UTILITY (3) ------ High-capacity Storage Unit Improved Signal Interpreter > --- WEAPON (2) ------- YOLO Cannon > --- INVENTORY (20) --- Flying Fortress v7 Huge Storage Unit High-capacity Matter Pod (200) High-capacity Matter Pod (200) High-capacity Matter Pod (200) Machine Analyzer Visual Processing Unit Seismic Detector Improved Light Armor Plating Improved Light Armor Plating PSU Rigger Spread Laser Heavy Particle Cannon Light Assault Rifle High-powered Shotgun Improved Datajack Peak State ------------ > --- POWER ------------ Ion Engine > --- PROPULSION ------- Flying Fortress v7 > --- UTILITY ---------- High-capacity Storage Unit Sensor Array Improved Signal Interpreter > --- WEAPON ----------- YOLO Cannon > --- INVENTORY -------- Ion Engine Wheel Wheel Wheel Compact Wheel Huge Storage Unit High-capacity Battery High-capacity Matter Pod High-capacity Matter Pod High-capacity Matter Pod High-capacity Matter Pod Machine Analyzer Visual Processing Unit Seismic Detector PSU Rigger Spread Laser Light Assault Rifle Improved Datajack [Rating: 61] Favorites ----------- Power Ion Engine Engine Ion Engine Power Core Nuclear Core Propulsion Wheel Wheel Wheel Flight Unit Flying Fortress v7 Utility High-capacity Storage Unit Device Sensor Array Storage High-capacity Storage Unit Processor Improved Signal Interpreter Weapon Light Assault Rifle Energy Gun Spread Laser Energy Cannon YOLO Cannon Ballistic Gun Light Assault Rifle Special Weapon Plasma Flamer Build | -11 -10 -10 -10 -9 -8 ------- Run | Yrd Mat Min Exi Min Mat Slots Evolved 4 | . . . . . 4 Power 1 | . . . . . 1 Propulsion 2 | . . . . . 2 Utility 1 | . . . . . 1 Weapon . | . . . . . . Parts Attached 61 | 7 11 . 9 . 34 Power 11 | 1 2 . 1 . 7 Engine 9 | 1 2 . 1 . 5 Core 2 | . . . . . 2 Reactor . | . . . . . . Propulsion 15 | 2 4 . 2 . 7 Treads . | . . . . . . Leg . | . . . . . . Wheel 13 | 2 3 . 2 . 6 Hover . | . . . . . . Flight 2 | . 1 . . . 1 Utility 18 | 1 1 . 3 . 13 Device 11 | . 1 . 2 . 8 Storage 5 | 1 . . 1 . 3 Processor 2 | . . . . . 2 Hackware . | . . . . . . Protection . | . . . . . . Artifact . | . . . . . . Weapon 17 | 3 4 . 3 . 7 Energy Gun 6 | 3 2 . . . 1 Energy Cannon 3 | . . . 1 . 2 Ballistic Gun 6 | . 2 . 2 . 2 Ballistic Cannon . | . . . . . . Launcher . | . . . . . . Special Weapon 2 | . . . . . 2 Impact Weapon . | . . . . . . Slashing Weapon . | . . . . . . Piercing Weapon . | . . . . . . Special Melee Weapon . | . . . . . . Unidentified Prototypes 3 | . . . 2 . 1 Parts Lost 11 | . 1 . . . 10 Power 4 | . . . . . 4 Propulsion 5 | . 1 . . . 4 Utility 2 | . . . . . 2 Weapon . | . . . . . . Highest Loss Streak 5 | . 1 . . . 5 To Critical Strikes . | . . . . . . Average Slot Usage (%) 87 | . 90 100 99 100 76 Engine 13 | . 12 14 14 14 13 Wheel 22 | . 20 28 28 28 18 Flight 2 | . 6 . . . 3 Device 10 | . 8 14 13 14 8 Storage 11 | . 14 14 14 14 9 Processor 4 | . . . . . 8 Energy Gun 2 | . 16 . . . 2 Energy Cannon 1 | . . . . . 3 Ballistic Gun 15 | . 10 28 27 28 6 Special Weapon 1 | . . . . . 2 Naked Turns . | . . . . . . Heaviest Build 71 | 14 15 13 64 48 71 Greatest Support 50 | 26 26 20 26 26 50 Greatest Overweight (x) 15 | 1 . . 3 1 15 Average Overweight (x) . | . . . 1 1 . Largest Inventory Capacity 25 | 8 8 8 20 20 25 Average Capacity 17 | 7 8 8 18 20 20 Most Carried 20 | 6 8 8 20 19 20 Average Carried 15 | 3 7 8 14 19 19 Final Capacity 20 | 8 8 8 20 20 20 Final Carried 19 | 6 8 8 19 19 19 Class Distribution -------------------- 51% | Mutant 31% | Skirmisher 16% | Scout Dominant Class ---------------- Mutant | -10/Materials Mutant | -10/Mines Mutant | -10/Exiles Skirmisher | -9/Mines Skirmisher | -8/Materials Resources | -11 -10 -10 -10 -9 -8 ----------- Run | Yrd Mat Min Exi Min Mat Matter Collected 1231 | 177 278 24 390 . 362 Remotely . | . . . . . . Salvage Created 1413 | . 47 . . . 1366 Parts 77 | . 3 . . . 74 Haulers Intercepted 2 | . . . . . 2 Recyclers Shooed 1 | . . . . . 1 Parts Field Recycled . | . . . . . . Retrieved Matter . | . . . . . . Parts Self-Destructed . | . . . . . . Prevented . | . . . . . . Kills | -11 -10 -10 -10 -9 -8 ------- Run | Yrd Mat Min Exi Min Mat Combat Hostiles Destroyed 41 | . 3 . . . 38 Guns 9 | . 3 . . . 6 Cannons 7 | . . . . . 7 AOE 19 | . . . . . 19 Classes Destroyed 12 | . 1 . . . 11 Worker 4 | . . . . . 4 Builder 2 | . . . . . 2 Hauler 2 | . . . . . 2 Mechanic 1 | . . . . . 1 Operator 1 | . . . . . 1 Watcher 2 | . . . . . 2 Swarmer 12 | . 3 . . . 9 Grunt 20 | . . . . . 20 Duelist 1 | . . . . . 1 Protector 1 | . . . . . 1 Sentry 6 | . . . . . 6 Heavy 1 | . . . . . 1 Best Kill Streak 17 | . 3 . . . 17 Combat Bots Only 14 | . 3 . . . 14 Max Kills in Single Turn 4 | . 1 . . . 4 Gunslinging . | . . . . . . Exploded 3 | . . . . . 3 Melee . | . . . . . . Uniques/NPCs Destroyed . | . . . . . . Combat | -11 -10 -10 -10 -9 -8 -------- Run | Yrd Mat Min Exi Min Mat Hostile Shots Fired 155 | . 29 . . . 126 Missed 51 | . 6 . . . 45 Damage Taken 1832 | . 176 . . . 1656 Core 618 | . 58 . . . 560 Absorbed by Shields . | . . . . . . Core Remaining (%) 88 | 100 . . . 76 . Volleys Fired 63 | . 5 2 . . 56 Largest 2 | . 2 2 . . 2 Hottest 120 | . 90 40 . . 120 Shots Fired 98 | . 10 4 . . 84 Gun 55 | . 10 4 . . 41 Cannon 27 | . . . . . 27 Launcher . | . . . . . . Special 16 | . . . . . 16 Kinetic 35 | . . 4 . . 31 Thermal 58 | . 5 . . . 53 Explosive . | . . . . . . Electromagnetic 5 | . 5 . . . . Robot Hit Streak 12 | . 3 3 . . 12 Robot Miss Streak 4 | . 2 1 . . 4 Penetration Max . | . . . . . . Secondary Targets 2 | . 1 . . . 1 Max Gunslinging Chain 1 | . 1 . . . 1 Shots Hit Robots 62 | . 6 3 . . 53 Core Hits 65 | . 3 . . . 62 Critical Kills 6 | . . . . . 6 Critical Parts Destroyed . | . . . . . . Critical Strikes 7 | . . . . . 7 Burn 1 | . . . . . 1 Meltdown 5 | . . . . . 5 Destroy 1 | . . . . . 1 Melee Attacks . | . . . . . . Impact . | . . . . . . Slashing . | . . . . . . Piercing . | . . . . . . Sneak Attacks . | . . . . . . Combat Hostiles . | . . . . . . Follow-up Attacks . | . . . . . . Damage Inflicted 5266 | . 94 21 . . 5151 Guns 462 | . 94 21 . . 347 Cannons 1384 | . . . . . 1384 Explosions 3190 | . . . . . 3190 Melee . | . . . . . . Ramming 64 | . . . . . 64 Kinetic 242 | . . 21 . . 221 Thermal 4748 | . 49 . . . 4699 Explosive 164 | . . . . . 164 Electromagnetic 48 | . 45 . . . 3 Impact . | . . . . . . Slashing . | . . . . . . Piercing . | . . . . . . Highest Corruption 5 | . . . . . 5 Average Corruption 5 | . . . . . 5 Corruption Purged . | . . . . . . Corruption Blocked . | . . . . . . Effects 7 | . . . . . 7 Message Errors 2 | . . . . . 2 Matter Fused 1 | . . . . . 1 Heat Flow Errors 1 | . . . . . 1 Energy Discharges 2 | . . . . . 2 Parts Rejected 1 | . . . . . 1 Overload Shots . | . . . . . . Overflow Damage 508 | . . . . . 508 Projectiles 303 | . . . . . 303 Explosions 199 | . . . . . 199 Melee 6 | . . . . . 6 Knockbacks 1 | . . . . . 1 Impact 1 | . . . . . 1 Kinetic . | . . . . . . Secondary . | . . . . . . Self-Inflicted Damage 325 | . . . . . 325 Shots 6 | . . . . . 6 Rammed 5 | . . . . . 5 Targets Rammed 5 | . . . . . 5 Kicked . | . . . . . . Crushed . | . . . . . . Highest Temperature 431 | . 45 . . . 431 Average Temperature 100 | . 21 . . . 105 Received Heat Transfer 477 | . . . . . 477 Effects 9 | . . . . . 9 Shutdowns 1 | . . . . . 1 Energy Bleed 3 | . . . . . 3 Interference 3 | . . . . . 3 Short Circuit 1 | . . . . . 1 Damage (minor) 1 | . . . . . 1 Siege Activations . | . . . . . . Robots Corrupted . | . . . . . . Combat Hostiles . | . . . . . . Parts Fried . | . . . . . . Impact Corruptions 1 | . . . . . 1 Robots Melted 6 | . . . . . 6 Combat Hostiles 6 | . . . . . 6 Parts Melted 10 | . 1 . . . 9 Heat Transferred 5993 | . 148 . . . 5845 Parts Sabotaged . | . . . . . . Parts Stolen . | . . . . . . Parts Stripped . | . . . . . . Power Chain Reactions 1 | . . . . . 1 Alert | -11 -10 -10 -10 -9 -8 ------- Run | Yrd Mat Min Exi Min Mat Peak Influence 1215 | . 83 31 . . 1215 Initial 31 | . . 31 . . . Average 305 | . 58 31 . . 383 Maximum Alert Level 4 | . . . . . 4 Low Security (%) 61 | 100 100 100 . 100 50 Level 1 13 | . . . . . 17 Level 2 1 | . . . . . 2 Level 3 21 | . . . . . 28 Level 4 . | . . . . . 1 Level 5 . | . . . . . . High Security . | . . . . . . Max Security . | . . . . . . Squads Dispatched 8 | . 2 . . . 6 Investigation 1 | . 1 . . . . Extermination . | . . . . . . Reinforcement 4 | . 1 . . . 3 Assault 3 | . . . . . 3 Garrison . | . . . . . . Intercept . | . . . . . . Searches Triggered . | . . . . . . Construction Impeded 1 | . . . . . 1 Haulers Reinforced . | . . . . . . Active Scanning Responses . | . . . . . . Cargo Convoy Interrupts . | . . . . . . Stealth | -11 -10 -10 -10 -9 -8 --------- Run | Yrd Mat Min Exi Min Mat Distress Signals 7 | . 2 . . . 5 Communications Jammed . | . . . . . . Distress Signals . | . . . . . . Times Spotted 64 | . 3 2 . . 59 Peak Tracking Total 14 | . 3 2 . . 14 Tactical Retreats 3 | . . . . . 3 Traps | -11 -10 -10 -10 -9 -8 ------- Run | Yrd Mat Min Exi Min Mat Traps Triggered 2 | . 1 . . . 1 Indirectly . | . . . . . . Trap Hack Attempts . | . . . . . . Triggered . | . . . . . . Disarmed . | . . . . . . Reprogrammed . | . . . . . . Reused . | . . . . . . Traps Extracted . | . . . . . . Installed . | . . . . . . Triggered . | . . . . . . Machines | -11 -10 -10 -10 -9 -8 ---------- Run | Yrd Mat Min Exi Min Mat Machines Disabled 7 | . . . . . 7 Max in Single Turn 1 | . . . . . 1 Garrison Access 1 | . . . . . 1 Machines Repaired . | . . . . . . Machines Dismantled . | . . . . . . Machines Sabotaged . | . . . . . . Overloaded Fab Kills . | . . . . . . Hacking | -11 -10 -10 -10 -9 -8 --------- Run | Yrd Mat Min Exi Min Mat Machines Accessed 15 | . 3 . 4 . 8 Terminals 9 | . 3 . . . 6 Fabricators . | . . . . . . Repair Stations . | . . . . . . Recycling Units 1 | . . . . . 1 Scanalyzers 1 | . . . . . 1 Garrison Access . | . . . . . . Total Hacks 81 | . 9 . 49 . 23 Successful 65 | . 6 . 49 . 10 Failed 16 | . 3 . . . 13 Catastrophic 1 | . 1 . . . . Database Lockouts . | . . . . . . Manual 24 | . 6 . 2 . 16 Terminals 26 | . 9 . . . 17 Fabricators . | . . . . . . Repair Stations . | . . . . . . Recycling Units 2 | . . . . . 2 Scanalyzers 4 | . . . . . 4 Garrison Access . | . . . . . . Terminal Hacks 53 | . 3 . 49 . 1 Record 49 | . . . 49 . . Prototype ID Bank 1 | . 1 . . . . Terminal Index 2 | . 1 . . . 1 Alert Level 1 | . 1 . . . . Fabricator Hacks . | . . . . . . Repair Station Hacks . | . . . . . . Recycling Unit Hacks 2 | . . . . . 2 Report Inventory 1 | . . . . . 1 Retrieve Components 1 | . . . . . 1 Scanalyzer 2 | . . . . . 2 Insert Component 1 | . . . . . 1 Analyze 1 | . . . . . 1 Garrison Access Hacks . | . . . . . . Unauthorized Hacks 8 | . 3 . . . 5 Terminals 8 | . 3 . . . 5 Assimilate 2 | . . . . . 2 Botnet 6 | . 3 . . . 3 Fabricators . | . . . . . . Repair Stations . | . . . . . . Recycling Units . | . . . . . . Scanalyzers . | . . . . . . Garrison Access . | . . . . . . Data Cores Recovered 1 | . . . . . 1 Used . | . . . . . . Hacking Detections 11 | . 3 . . . 8 Full Trace Events 1 | . . . . . 1 Feedback Events . | . . . . . . Feedback Blocked . | . . . . . . Robot Schematics Acquired . | . . . . . . Robots Built . | . . . . . . Authchips . | . . . . . . Time . | . . . . . . Total Robot Build Rating . | . . . . . . Part Schematics Acquired 1 | . . . . . 1 Parts Built . | . . . . . . Authchips . | . . . . . . Time . | . . . . . . Total Part Build Rating . | . . . . . . Parts Repaired . | . . . . . . Time . | . . . . . . Parts Recycled . | . . . . . . Recycled Matter . | . . . . . . Retrieved Matter . | . . . . . . Retrieved Components 10 | . . . . . 10 Parts Scanalyzed 1 | . . . . . 1 Part Schematics Acquired 1 | . . . . . 1 Parts Damaged . | . . . . . . Bothacking | -11 -10 -10 -10 -9 -8 ------------ Run | Yrd Mat Min Exi Min Mat Used RIF Installer . | . . . . . . Robots Hacked . | . . . . . . Non-combat . | . . . . . . Combat . | . . . . . . Robot Hacks Applied . | . . . . . . Relay Couplers Released . | . . . . . . Fabnet Peak Effective % . | . . . . . . Robots Rewired . | . . . . . . Allies Hacked . | . . . . . . Hacks Repelled . | . . . . . . Allies | -11 -10 -10 -10 -9 -8 -------- Run | Yrd Mat Min Exi Min Mat Total Allies 1 | . . . . . 1 Largest Group 1 | . . . . . 1 Highest-Rated Group 10 | . . . . . 10 Highest-Rated Ally 10 | . . . . . 10 Total Orders . | . . . . . . Ally Attacks . | . . . . . . Total Damage . | . . . . . . Kills . | . . . . . . Allies Corrupted . | . . . . . . Allies Melted . | . . . . . . Intel | -11 -10 -10 -10 -9 -8 ------- Run | Yrd Mat Min Exi Min Mat Robot Analysis Total . | . . . . . . Derelict Logs Recovered . | . . . . . . Drone Launches . | . . . . . . Drone Recoveries . | . . . . . . Exploration | -11 -10 -10 -10 -9 -8 ------------- Run | Yrd Mat Min Exi Min Mat Turns Passed 2536 | 54 206 87 866 30 1293 Spaces Moved 2008 | 44 171 81 818 29 865 Core 6 | 5 . . . . 1 Treads . | . . . . . . Legs . | . . . . . . Wheels 1712 | 39 171 81 818 29 574 Hover . | . . . . . . Flight 290 | . . . . . 290 Fastest Speed 50 | 50 80 80 80 105 50 Average Speed 94 | 86 93 80 102 105 87 Slowest Speed 800 | 100 100 80 125 105 800 Overloaded Moves . | . . . . . . Propulsion Burnouts . | . . . . . . Robots Hopped 2 | . . . . . 2 Cave-ins Triggered . | . . . . . . Exploration Rate (%) 38 | 4 35 29 94 9 59 Regions Visited 5 Branch Regions 3 Pre-discovered Areas 1 | . . . 1 . . Known Exits Taken . | . . . . . . Unknown Exits Taken 5 | 1 1 1 1 1 . Scrap Searched . | . . . . . . Spaces Dug 25 | . . . . . 25 Terrain Destroyed 273 | . . . . . 273 Melee . | . . . . . . Projectile 8 | . . . . . 8 AOE 265 | . . . . . 265 Terrain Rammed . | . . . . . . Walls Destroyed . | . . . . . . Machines Disabled . | . . . . . . Actions | -11 -10 -10 -10 -9 -8 --------- Run | Yrd Mat Min Exi Min Mat Total 2498 | 56 207 100 846 28 1261 Wait 289 | . 3 16 . . 270 Move 1999 | 43 170 80 817 28 861 Hop 2 | . . . . . 2 Pick Up 35 | 5 8 1 8 . 13 Fast Attach 23 | 7 6 . 3 . 7 Attach 16 | . 1 . 4 . 11 Detach 12 | 1 . . 6 . 5 Swap 22 | . 4 . 2 . 16 Drop 31 | . 10 1 5 . 15 Fire 63 | . 5 2 . . 56 Melee . | . . . . . . Ram 5 | . . . . . 5 Kick . | . . . . . . Crush . | . . . . . . Escape Stasis . | . . . . . . Rewire 1 | . . . 1 . . Trap . | . . . . . . Miscellaneous . | . . . . . . Route ------- -11/Scrapyard -10/Materials -10/Mines -10/Exiles (discovered 2 exits: [*Min x2]) -9/Mines -8/Materials (discovered 1 exit: *Fac) History --------- Turn | Location | Event 2 | -11/Scrapyard | Met Revision 17 11 | -11/Scrapyard | Discovered new exit (range 16) 55 | -11/Scrapyard | Entered Materials 181 | -10/Materials | Discovered new exit (range 8) 182 | -10/Materials | Met 8R-AWN 261 | -10/Materials | Entered Mines 262 | -10/Mines | Followed 8R-AWN into the Mines 309 | -10/Mines | A weapon hastily lodged in a ceiling crevice suddenly fell to the ground 332 | -10/Mines | Build established: Mutant 344 | -10/Mines | Discovered new exit (range 5) 348 | -10/Mines | Entered Exiles 374 | -10/Exiles | Welcomed by 8R-AWN 387 | -10/Exiles | Met EX-HEX 466 | -10/Exiles | Met EX-DEC 500 | -10/Exiles | Learned location of Zion (-7) 544 | -10/Exiles | Met EX-BIN 566 | -10/Exiles | Aligned with FarCom system 567 | -10/Exiles | Given EX-Vault access code 661 | -10/Exiles | Opened EX-Vault 670 | -10/Exiles | Found Prototype Device 670 | -10/Exiles | Identified PSU Rigger 677 | -10/Exiles | Found Prototype Energy Cannon 677 | -10/Exiles | Identified YOLO Cannon 681 | -10/Exiles | Found Prototype Flight Unit 706 | -10/Exiles | Warned to stay clear of 0b10 Research branches 853 | -10/Exiles | Discovered new exit (range 14) 986 | -10/Exiles | Visited The Gauntlet 1171 | -10/Exiles | Learned about 8R-AWN's background 1202 | -10/Exiles | Discovered new exit (range 14) 1214 | -10/Exiles | Stole three prototypes: PSU Rigger, YOLO Cannon, Flying Fortress v7 1214 | -10/Exiles | Entered Mines 1230 | -9/Mines | Discovered new exit (range 14) 1244 | -9/Mines | Entered Materials 1244 | -8/Materials | Evolved 4 slots: Power x1, Propulsion x2, Utility x1 1254 | -8/Materials | Identified Flying Fortress v7 1558 | -8/Materials | Build established: Scout 1746 | -8/Materials | Discovered new exit (range 10) 1755 | -8/Materials | Identified exit to Factory 2050 | -8/Materials | Build established: Skirmisher 2167 | -8/Materials | Lost 4 parts (2p2n) 2182 | -8/Materials | Destroyed 14 combat bots 2444 | -8/Materials | First assault squad dispatched 2510 | -8/Materials | Core integrity fell below 50% 2527 | -8/Materials | Core integrity fell below 20% 2537 | -8/Materials | Destroyed by G-47 Trooper with Particle Gun Last Messages --------------- (Meltdown). 02526_ Adv. Heat Sink melted. 02526_ G-47 Trooper destroyed. 02526_ K-01 Serf destroyed. 02529_ K-01 Serf collects debris. 02532_ L-31 Rogue suffers critical hit (Meltdown). 02532_ Katana melted. 02532_ Hcp. Battery destroyed. 02532_ Destroyed Hcp. Battery. 02532_ Recycling Unit disabled. 02532_ Imp. Sensor Array tumbles out of recycling unit. 02532_ Particle Gun melted. 02532_ G-47 Trooper destroyed. 02533_ M-28 Smith repairs B-36 Bruiser. 02534_ K-01 Serf collects debris. 02536_ Technician 3a reports 0b10 security level has risen to 4. 02537_ K-01 Serf collects debris. Map ----- +----------------------------------------------------+ | #?????????????????????? | | #?????????????????????? | | #?????????????????????? | | #?????????????????????? | | #?????????????????????? | | +?????????????????????? | | +## #?????????????????????? | | =!# #?????????????????????? | | [*# #?????????????????????? | | =!# #??#?##???????????????? | | ==# # #???????????????? | | # #???#######?????? | | " + #???? ] ?????? | | " # #???? ?????? | | " ###### #???"" ?????? | | #?????## ###??""" ?????? | | #??????# #???#""" #????? | | ! #??????# #???#""" #????? | | #??????# #???#""" #????? | | ###??????# #???# / #????? | | #????##### ##### b ##???? | | #?####"""#%# ;##;;g ;;;##### | | #?# ;bg "" # | | #?# * =m=;=[;[! Y" # | | #?# % % k%% % # | | ### %/; [!i !@ ] # | | + %=!% = ! # | | ### # / = # | | ??#######"####### !*=% ###### | | ????????###????# ; ##????? | | ???????????????## ; ##?????? | | ????????????????### #??????? | | ??????????????????# #??????? | | ??????????????????# #??????? | | ??????????????????# #??????? | | ?????????????????? ??????? | | ????????????????? ??????? | | ????????????????# % ??????? | | ????????????????? [%= ??????? | | ?????????????????? ! ??????? | | ?????????????????? ??????? | | ?????????????????? ??????? | | ?????????????????????????????? | | ?????????????????????????????? | | ?????????????????????????????? | | ?????????????????????????????? | | ?????????????????????????????? | | ?????????????????????????????? | | ?????????????????????????????? | | ?????????????????????????????? | +----------------------------------------------------+ Best States ------------- Heat Dissipation 31 Energy Generation 19 Energy Capacity 400 Matter Stores 300 Matter Capacity 300 Sight Range 16 Robot Scan Range 15 Terrain Scan Density 10 Evasion (%) 60 Item Schematics ----------------- Machine Analyzer | -8/Materials | Scanalyzed Robot Schematics ------------------ None Fabricated ------------ Nothing Alien Tech Used ----------------- None Achievements -------------- It's Just You Significant Disruption Challenges ------------ None Game ------ Seed InsulatedMappingOptics Manual? 0 Play Time 00:57:44 Cumulative 17.3 hours Start 2024.05.01 @ 20:36:17 End 2024.05.02 @ 17:53:23 Sessions 3 Manual Loads 0 Difficulty Rogue Special Mode None Game No. 20 Rogue 20 Adventurer 0 Explorer 0 Win Type - Total 0 Types 0/0/0/0/0/0/0/0/0 Lore% 18 Gallery% 18 Achievement% 16 Wizard Run 0 Options --------- Layout 1 ASCII 0 Keyboard 1 Movement Arrows Keybinds 0 Fullscreen 2 Font 24/Smallcaps Map View 50x35 Zoom Use 0% Tactical HUD 1 Map Filters NONE Filters NONE Steam 1 RUN: fcde19eb-f525-428e-a0c5-454db52f0666